bitfinex/quotes_ETHUSD_20220118
["timestamp","ask_amount","ask_price","bid_price","bid_amount"]
[1642532952594,0.83488918,3110.3,3109.6,0.00852635]
[1642532952795,0.83488918,3110.3,3109.6,0.81252635]
[1642532952997,0.83488918,3110.3,3109.7,0.1285]
[1642532953194,1.1285,3110.8,3109.7,0.13645793]
[1642532953195,0.83488918,3110.6,3109.7,0.13645793]
[1642532953397,0.83488918,3110.6,3109.8,0.00738951]
[1642532953598,0.83488918,3110.6,3110.5,1.82782774]
[1642532953798,0.83488918,3110.6,3110.4,1.23582699]
[1642532954098,0.83488918,3110.6,3110.5,0.00341054]
[1642532954499,0.25552,3110.6,3110.5,0.00341054]
[1642532954698,0.25552,3110.6,3110.5,2.27500567]
[1642532954903,0.1285,3111.0,3110.5,0.00341054]
[1642532955103,3.70095598,3111.1,3110.5,0.00341054]
[1642532955534,0.83488918,3111.0,3110.5,0.00341054]
[1642532955738,0.83488918,3111.0,3110.5,0.13191054]
[1642532956134,0.83488918,3111.0,3110.6,0.00284212]
[1642532956336,0.83488918,3111.0,3110.7,0.80372]
[1642532956537,0.83488918,3111.0,3110.7,1.60744]
[1642532956735,2.40545456,3111.4,3110.8,0.00170527]
[1642532956736,0.00170527,3111.4,3110.8,0.00170527]
[1642532957134,0.00170527,3111.4,3110.7,0.00227369]
[1642532957935,0.00170527,3111.4,3110.6,0.00284212]
[1642532958138,2.97399985,3111.4,3110.6,0.00284212]
[1642532958338,18.88,3111.3,3110.6,0.00284212]
[1642532958537,23.90912392,3111.2,3110.6,0.00284212]
[1642532958738,2.50342691,3111.1,3110.6,0.00284212]
[1642532958943,2.50342691,3111.1,3110.1,0.1285]
[1642532958944,4.57467595,3111.0,3110.4,0.00397896]
[1642532959211,0.01280146,3110.9,3110.4,0.00397896]
[1642532959408,0.01280146,3110.9,3110.2,0.00511581]
[1642532959409,0.5935,3110.8,3110.2,0.00511581]
[1642532959609,1.0,3110.7,3110.2,0.00511581]
[1642532959811,2.01460463,3110.5,3110.2,0.00511581]
[1642532960013,0.1285,3110.4,3110.2,0.00511581]
[1642532962211,0.3,3110.5,3110.2,0.00511581]
[1642532962410,0.1285,3110.7,3110.2,0.00511581]
[1642532962612,0.3,3110.4,3110.2,0.00511581]
[1642532962838,0.4285,3110.7,3110.2,0.00511581]
[1642532963041,0.1285,3110.7,3110.2,0.00511581]
[1642532963241,0.3,3110.3,3110.1,0.80957424]
[1642532963441,0.1285,3110.7,3110.1,0.80957424]
[1642532963639,0.1285,3110.7,3110.2,0.00511581]
[1642532964240,2.13834568,3110.5,3110.2,0.00511581]
[1642532964439,2.43834568,3110.5,3110.1,0.00568424]
[1642532964640,0.3,3110.5,3110.1,0.80954424]
[1642532964840,0.1285,3110.7,3110.1,0.80386]
[1642532965039,0.1285,3110.7,3110.2,0.00511581]
[1642532965640,1.86809779,3110.3,3110.2,0.00511581]
[1642532965839,1.86809779,3110.3,3110.0,0.00625266]
[1642532966042,1.4285,3110.9,3110.2,0.00511581]
[1642532966242,2.04423599,3110.9,3110.7,1.47806933]
[1642532966444,1.91573599,3110.9,3110.7,1.47806933]
[1642532966687,1.91573599,3110.9,3110.8,0.00170527]
[1642532966887,3.65737332,3110.9,3110.8,0.00170527]
[1642532967088,2.04163733,3110.9,3110.8,0.00170527]
[1642532968094,2.04163733,3110.9,3110.4,0.00397896]
[1642532968890,2.04163733,3110.9,3110.4,1.14468472]
[1642532969290,2.04163733,3110.9,3110.5,0.00341054]
[1642532969690,0.3,3110.9,3110.5,0.00341054]
[1642532969890,2.21573599,3111.0,3110.5,0.00341054]
[1642532970737,1.91573599,3111.0,3110.5,0.00341054]
[1642532971136,1.61573599,3111.0,3110.8,1.92047792]
[1642532971337,1.61573599,3111.1,3110.8,1.92047792]
[1642532971536,1.61573599,3111.1,3110.9,0.00113685]
[1642532971537,1.91573599,3111.1,3110.9,0.00113685]
[1642532972340,0.3,3111.1,3110.9,0.00113685]
[1642532972541,1.91573599,3111.3,3110.9,0.00113685]
[1642532972741,1.91573599,3111.3,3110.8,0.00170527]
[1642532972939,1.99423599,3111.3,3110.8,0.00170527]
[1642532973139,0.80387,3111.2,3110.6,0.00284212]
[1642532973343,0.80387,3111.2,3110.5,0.00341054]
[1642532973739,2.23630809,3110.9,3110.5,0.00341054]
[1642532974088,2.29423599,3111.3,3110.5,0.00341054]
[1642532974089,1.61573599,3111.1,3110.5,0.00341054]
[1642532974490,1.91573599,3111.1,3110.5,0.00341054]
[1642532974690,0.3,3111.0,3110.5,0.80718054]
[1642532974988,2.21573599,3111.2,3110.6,0.00284212]
[1642532975589,0.6,3111.2,3110.6,0.00284212]
[1642532975789,2.21573599,3111.3,3110.5,0.00341054]
[1642532975996,2.21573599,3111.3,3110.6,0.1285]
[1642532976188,2.21573599,3111.3,3110.6,0.93224]
[1642532976390,0.6,3111.3,3110.7,0.00227369]
[1642532976793,1.91744126,3111.4,3110.7,0.00227369]
[1642532977194,1.91744126,3111.4,3111.2,1.85602315]
[1642532977395,0.30170527,3111.4,3111.2,1.85602315]
[1642532977595,0.30170527,3111.4,3110.7,0.80599369]
[1642532977847,0.00170527,3111.4,3110.7,0.80599369]
[1642532978037,0.00170527,3111.4,3110.8,0.00170527]
[1642532978645,1.98934443,3111.3,3110.8,0.00170527]
[1642532979040,2.28934443,3111.3,3110.8,0.00170527]
[1642532981146,0.3,3111.3,3110.8,0.00170527]
[1642532981587,2.04594126,3111.4,3110.8,0.00170527]
[1642532981790,2.04594126,3111.4,3110.7,0.00227369]
[1642532981989,2.34594126,3111.4,3110.7,0.00227369]
[1642532982190,2.04594126,3111.4,3110.7,0.00227369]
[1642532982389,1.66709991,3111.3,3110.7,0.00227369]
[1642532983592,1.66709991,3111.3,3110.6,0.00284212]
[1642532984095,1.66709991,3111.3,3110.6,0.80658212]
[1642532984293,2.72122086,3111.4,3110.6,0.80658212]
[1642532984494,2.72122086,3111.4,3110.7,0.00227369]
[1642532984694,1.91744126,3111.4,3110.7,0.00227369]
[1642532984894,2.21744126,3111.4,3110.7,0.00227369]
[1642532985341,3.90507057,3111.4,3110.8,1.91228338]
[1642532985738,3.60507057,3111.4,3110.9,0.00113685]
[1642532985939,4.40886057,3111.4,3110.9,0.00113685]
[1642532986138,2.72123126,3111.4,3110.9,0.00113685]
[1642532987042,1.61573599,3111.3,3110.9,0.00113685]
[1642532987440,1.61573599,3111.3,3110.6,3.34588212]
[1642532987640,1.61573599,3111.3,3110.7,0.00227369]
[1642532987842,0.3,3111.4,3110.7,0.00227369]
[1642532988041,1.61573599,3111.5,3110.9,0.80364]
[1642532988042,1.91573599,3111.5,3110.9,0.80364]
[1642532988241,1.91573599,3111.5,3111.0,1.91460015]
[1642532988440,0.00170527,3111.4,3111.0,1.91460015]
[1642532988845,0.00113685,3111.3,3111.0,1.91460015]
[1642532989291,1.91857811,3111.6,3111.1,0.8036]
[1642532989591,0.00227369,3111.5,3111.1,1.6072]
[1642532990492,0.00227369,3111.5,3111.1,3.49305665]
[1642532990694,0.00227369,3111.5,3111.1,1.88585665]
[1642532990993,0.00227369,3111.5,3110.9,0.80365]
[1642532991295,0.00227369,3111.5,3110.7,0.13077369]
[1642532991693,0.80610369,3111.5,3110.8,0.00170527]
[1642532992093,0.80610369,3111.5,3110.6,0.00284212]
[1642532992293,1.83045043,3111.0,3110.6,0.00284212]
[1642532992496,0.80383,3111.3,3110.6,0.00284212]
[1642532992698,0.00227369,3111.5,3110.6,0.00284212]
[1642532992938,0.00227369,3111.5,3110.5,0.00341054]
[1642532993144,0.00227369,3111.5,3110.6,0.00284212]
[1642532993340,0.00227369,3111.5,3110.5,1.00341054]
[1642532993541,1.68359716,3111.2,3110.6,0.00284212]
[1642532993741,2.93719289,3111.1,3110.6,0.00284212]
[1642532993941,0.1285,3111.0,3110.6,0.00284212]
[1642532994147,0.1285,3111.0,3110.5,0.00341054]
[1642532994343,1.5556,3111.0,3110.5,0.00341054]
[1642532994543,3.4088094,3110.9,3110.4,0.00397896]
[1642532994744,0.1285,3110.8,3110.2,0.00511581]
[1642532995140,2.0854042,3110.5,3110.2,0.00511581]
[1642532995344,0.1285,3110.8,3110.1,0.00568424]
[1642532996143,0.13661754,3110.7,3110.1,0.00568424]
[1642532996584,0.804,3110.6,3110.1,0.00568424]
[1642532996794,1.104,3110.6,3110.1,0.00568424]
[1642532997589,2.02786801,3110.5,3110.1,0.00568424]
[1642532997992,2.16448555,3110.5,3110.1,0.00568424]
[1642532998894,0.13661754,3110.4,3110.1,0.00568424]
[1642532999496,0.43661754,3110.4,3110.1,0.00568424]
[1642532999697,3.05177957,3110.3,3110.1,0.00568424]
[1642532999895,0.1285,3110.3,3109.9,0.00682108]
[1642533000097,0.1285,3110.3,3109.8,0.00738951]
[1642533000961,1.77347899,3110.0,3109.8,0.00738951]
[1642533001161,0.13661754,3110.2,3109.8,0.00738951]
[1642533001866,0.13661754,3110.2,3109.9,0.1285]
[1642533002062,0.13661754,3110.2,3110.0,0.80376]
[1642533002265,1.61573599,3110.7,3110.1,6.215]
[1642533002463,1.61573599,3110.7,3110.2,0.1285]
[1642533002663,3.599e-05,3110.7,3110.2,1.59861581]
[1642533002862,3.599e-05,3110.7,3110.3,0.00454739]
[1642533003064,2.40374929,3111.0,3110.5,0.8036]
[1642533003263,0.83488918,3111.3,3110.7,3.13542681]
[1642533003463,0.83488918,3111.3,3110.9,0.8035969]
[1642533004090,0.83488918,3111.3,3110.8,0.13020527]
[1642533004293,0.83488918,3111.3,3110.8,1.60885527]
[1642533004497,2.04910876,3111.8,3110.9,0.00113685]
[1642533004893,2.34910876,3111.8,3110.9,0.00113685]
[1642533005493,1.74823269,3111.3,3110.9,0.00113685]
[1642533005693,0.1285,3111.4,3110.9,0.00113685]
[1642533005894,0.1285,3111.4,3110.8,0.00170527]
[1642533006093,0.00113685,3111.3,3110.8,0.00170527]
[1642533007493,0.00113685,3111.3,3110.8,0.80536527]
[1642533007932,0.00113685,3111.3,3110.9,0.00113685]
[1642533009541,0.00113685,3111.3,3111.2,2.19705921]
[1642533009747,0.00113685,3111.3,3111.2,4.84705921]
[1642533010039,0.00113685,3111.3,3111.2,7.74073619]
[1642533010940,0.00113685,3111.3,3111.2,9.04073619]
[1642533011692,0.00113685,3111.3,3111.2,9.50573619]
[1642533012990,0.00113685,3111.3,3111.2,9.94393616]
[1642533013392,1.63258965,3112.1,3111.6,0.80326]
[1642533013595,1.63258965,3112.1,3111.6,4.47628684]
[1642533013795,0.00397896,3112.0,3111.7,0.1285]
[1642533013996,0.00397896,3112.0,3111.7,1.1285]
[1642533014194,0.00341054,3111.9,3111.7,1.1285]
[1642533014395,0.00341054,3111.9,3111.8,5.5329316]
[1642533014594,1.63258965,3112.3,3111.8,8.58183128]
[1642533014899,4.213196,3114.0,3112.0,1.60654]
[1642533014900,1.63258965,3112.4,3112.0,1.60654]
[1642533015097,0.00511581,3112.2,3112.0,1.60654]
[1642533015336,0.00568423,3112.3,3112.0,1.60654]
[1642533015539,0.00454738,3112.1,3112.0,7.35654]
[1642533015741,0.00568423,3112.3,3112.0,10.50287926]
[1642533015940,1.63258965,3112.6,3112.0,11.96787926]
[1642533016138,1.63258965,3112.6,3112.2,0.8031]
[1642533016340,0.00113685,3112.3,3112.2,1.88213]
[1642533016539,0.00113685,3112.3,3112.2,5.73213]
[1642533016944,0.00113685,3112.3,3112.2,6.73213]
[1642533017143,2.40374929,3112.8,3112.3,5.75]
[1642533017344,2.40374929,3112.8,3112.3,7.2706]
[1642533017551,2.92117174,3113.8,3112.4,6.65307]
[1642533017552,0.00113685,3112.5,3112.4,6.65307]
[1642533017756,0.00113685,3112.5,3112.4,6.78157]
[1642533017944,1.62792494,3113.2,3112.4,6.78157]
[1642533018143,1.62792494,3113.2,3112.5,1.73476]
[1642533018343,0.00454739,3113.1,3112.8,1.47027938]
[1642533018545,0.00454739,3113.1,3112.9,1.66693767]
[1642533018745,0.00397897,3113.0,3112.9,2.46997767]
[1642533019487,0.00397897,3113.0,3112.9,1.66693767]
[1642533020591,2.90397897,3113.0,3112.9,1.66693767]
[1642533021193,2.90397897,3113.0,3112.4,3.6367]
[1642533021399,2.90397897,3113.0,3112.0,3.851]
[1642533021400,3.33227897,3113.0,3111.9,3.0904]
[1642533021594,7.14768864,3112.9,3111.5,1.2006]
[1642533021793,0.1285,3112.8,3112.0,0.00170527]
[1642533021993,0.80349,3112.7,3111.6,0.00397896]
[1642533022194,0.7285,3112.6,3111.6,0.00397896]
[1642533022393,2.99842488,3112.5,3112.4,1.65189091]
[1642533022597,2.99842488,3112.5,3111.6,0.00397896]
[1642533022598,11.14551488,3112.5,3111.6,0.00397896]
[1642533022839,0.15040169,3112.4,3111.6,0.00397896]
[1642533023037,0.61540169,3112.4,3111.3,0.00568423]
[1642533023237,3.30352422,3112.3,3111.3,0.00568423]
[1642533023436,0.1285,3112.2,3112.0,2.01271623]
[1642533023643,0.1285,3112.2,3111.3,0.00568423]
[1642533023644,7.01869,3112.1,3111.3,0.00568423]
[1642533023845,3.16171111,3112.0,3110.9,0.128687]
[1642533024043,0.465,3111.9,3110.9,0.128687]
[1642533024241,3.23882121,3111.8,3111.0,0.0073895]
[1642533024442,0.465,3111.7,3111.0,0.0073895]
[1642533024641,0.465,3111.7,3111.1,1.1713929]
[1642533024642,0.1285,3111.6,3111.1,1.1713929]
[1642533024845,0.1285,3111.6,3111.2,2.33313029]
[1642533025142,0.465,3111.7,3111.3,0.00568423]
[1642533025542,0.5935,3112.1,3111.3,0.00568423]
[1642533025745,0.465,3112.1,3111.4,0.8035]
[1642533026143,0.465,3112.1,3111.5,0.00454739]
[1642533026600,0.1285,3112.2,3111.5,0.00454739]
[1642533027392,0.1285,3112.2,3111.6,0.80344]
[1642533027597,0.01247425,3112.3,3111.6,0.80344]
[1642533027795,0.1285,3112.5,3111.7,0.00341054]
[1642533028193,0.00170527,3112.6,3111.7,0.00341054]
[1642533028393,0.00170527,3112.6,3112.3,1.15909272]
[1642533028694,0.00170527,3112.6,3112.5,1.900798]
[1642533028893,0.00170527,3112.6,3111.6,0.00397896]
[1642533029493,0.00170527,3112.6,3111.8,0.80338]
[1642533029694,0.00170527,3112.6,3111.9,0.80336]
[1642533029896,0.00170527,3112.6,3111.9,0.80563369]
[1642533030093,0.00170527,3112.6,3112.0,0.00170527]
[1642533031239,0.00170527,3112.6,3112.4,1.73316725]
[1642533031437,0.00170527,3112.6,3112.0,0.00170527]
[1642533031841,0.00170527,3112.6,3111.6,0.00397896]
[1642533032240,0.00170527,3112.6,3111.9,1.23586892]
[1642533032540,0.00170527,3112.6,3112.0,0.80504527]
[1642533032741,0.00170527,3112.6,3112.0,3.32796307]
[1642533032941,0.00170527,3112.6,3112.1,0.00113685]
[1642533033146,0.00170527,3112.6,3112.5,2.10847285]
[1642533035088,0.00170527,3112.6,3112.1,0.00113685]
[1642533036391,0.00170527,3112.6,3112.2,2.29143165]
[1642533038640,2.9069947,3113.0,3112.2,2.29143165]
[1642533038839,3.76527759,3112.9,3112.3,0.00170527]
[1642533039042,22.64527759,3112.9,3112.3,0.00170527]
[1642533039439,1.0,3112.8,3112.2,0.00227369]
[1642533039643,3.47960772,3112.7,3112.2,0.00227369]
[1642533040246,5.59028161,3112.7,3112.2,0.00227369]
[1642533040446,6.39386161,3112.7,3112.2,0.00227369]
[1642533040646,0.80359,3112.4,3112.2,0.00227369]
[1642533040953,7.73092878,3112.3,3112.2,0.00227369]
[1642533041347,9.03092878,3112.3,3112.2,0.00227369]
[1642533041600,27.91092878,3112.3,3112.2,0.00227369]
[1642533041794,28.37592878,3112.3,3112.2,0.00227369]
[1642533043604,29.2458643,3112.3,3112.2,0.00227369]
[1642533043799,5.5158643,3112.3,3112.2,0.00129701]
[1642533044399,2.63493552,3112.3,3112.2,0.00129701]
[1642533045339,1.765,3112.3,3112.2,0.00129701]
[1642533045540,0.765,3112.3,3112.2,0.00129701]
[1642533045741,1.765,3112.3,3112.2,0.00129701]
[1642533047248,4.165,3112.3,3112.2,0.00129701]
[1642533047646,1.765,3112.3,3112.2,0.00129701]
[1642533049197,0.765,3112.3,3112.2,0.00129701]
[1642533049596,0.465,3112.3,3112.2,0.00129701]
[1642533049798,0.765,3112.3,3112.2,0.00129701]
[1642533049998,0.3,3112.3,3112.2,0.00129701]
[1642533050399,4.19798085,3112.7,3112.2,0.00129701]
[1642533050400,0.3,3112.4,3112.2,0.00129701]
[1642533050600,4.79798085,3112.7,3112.2,0.00129701]
[1642533050798,0.00097668,3112.6,3112.2,0.00129701]
[1642533051600,2.90529403,3112.6,3112.2,0.00129701]
[1642533051900,21.78529403,3112.6,3112.2,0.00129701]
[1642533052100,22.08529403,3112.6,3112.2,0.00129701]
[1642533052301,1.60711,3112.5,3112.2,0.00129701]
[1642533052501,0.80364,3112.4,3112.2,0.00129701]
[1642533052839,1.40364,3112.4,3112.2,0.00129701]
[1642533053042,5.30309192,3112.4,3112.2,0.00129701]
[1642533053245,27.99658444,3112.3,3112.2,0.00129701]
[1642533053445,9.11658444,3112.3,3112.2,0.00129701]
[1642533053643,10.11658444,3112.3,3112.2,0.00129701]
[1642533053846,5.75,3112.2,3112.1,0.05277346]
[1642533054050,0.8038,3112.0,3110.8,0.1285]
[1642533054345,4.44769243,3111.9,3110.4,11.0056]
[1642533054545,1.60762,3111.7,3110.9,0.00738951]
[1642533054745,1.60762,3111.7,3110.5,0.0096632]
[1642533054947,1.4038213,3111.6,3110.5,0.0096632]
[1642533055148,1.40381,3111.6,3110.5,0.0096632]
[1642533055350,2.07642487,3111.3,3110.7,2.12136415]
[1642533055549,2.37642487,3111.3,3110.7,2.12136415]
[1642533055751,0.3,3111.3,3111.1,1.22770526]
[1642533055948,2.08730696,3111.9,3111.1,1.22770526]
[1642533056149,2.08730696,3111.9,3111.2,0.00568424]
[1642533056350,0.3,3111.9,3111.2,0.00568424]
[1642533056598,1.92230696,3112.1,3111.2,0.00568424]
[1642533056998,1.92230696,3112.1,3111.3,0.80353]
[1642533057199,1.62230696,3112.1,3111.4,0.1285]
[1642533057402,3.40374929,3112.3,3111.7,1.51183216]
[1642533057403,1.0,3112.3,3111.7,1.51183216]
[1642533057599,3.2845736,3112.4,3111.8,0.1285]
[1642533057802,3.2845736,3112.4,3111.8,0.1307737]
[1642533058003,3.2845736,3112.4,3111.9,0.80507527]
[1642533058203,3.2845736,3112.4,3112.0,0.1285]
[1642533058407,1.66226664,3112.4,3112.0,0.12963685]
[1642533058804,0.00097668,3112.6,3112.0,0.00113685]
[1642533059208,0.00170527,3112.5,3112.1,0.80332]
[1642533059604,0.00113684,3112.4,3112.1,0.80332]
[1642533060108,0.00284211,3112.7,3112.2,0.1285]
[1642533060338,0.00284211,3112.7,3112.3,0.80325]
[1642533060539,1.62230696,3113.0,3112.4,0.1285]
[1642533060540,0.00227369,3112.6,3112.4,0.1285]
[1642533060742,0.00227369,3112.6,3112.5,2.26037715]
[1642533061043,2.22786553,3113.3,3112.5,2.26037715]
[1642533061044,1.62230696,3113.3,3112.5,2.26037715]
[1642533061440,0.00397896,3112.9,3112.5,2.26037715]
[1642533061644,0.00397896,3112.9,3112.5,3.06356715]
[1642533061849,0.00341054,3112.8,3112.5,3.06356715]
[1642533062043,0.00341054,3112.8,3112.5,3.19206715]
[1642533062245,3.76772188,3113.3,3112.5,3.19206715]
[1642533062246,0.00284211,3112.7,3112.5,3.19206715]
[1642533062646,0.00227369,3112.6,3112.5,3.19206715]
[1642533063448,0.00227369,3112.6,3112.5,3.06356715]
[1642533066496,0.00227369,3112.6,3112.5,6.26356715]
[1642533067301,0.00227369,3112.6,3112.5,6.39206715]
[1642533067500,0.00227369,3112.6,3112.5,4.00319]
[1642533067700,0.00227369,3112.6,3112.5,3.2]
[1642533068548,1.7563705,3112.6,3112.5,3.2]
[1642533068950,0.30227369,3112.6,3112.5,3.2]
[1642533069449,0.00227369,3112.6,3112.5,3.2]
[1642533077556,0.13077369,3112.6,3112.5,3.2]
[1642533077757,3.01712149,3112.6,3112.5,3.2]
[1642533077956,3.31712149,3112.6,3112.5,3.2]
[1642533078157,0.8035,3112.5,3112.0,0.12963685]
[1642533078357,3.19270848,3112.4,3112.0,0.12963685]
[1642533078559,0.80366,3112.2,3112.0,0.12963685]
[1642533078858,6.1785,3112.1,3112.0,0.12963685]
[1642533079097,2.24495486,3112.1,3112.0,0.12963685]
[1642533079292,2.11645486,3112.1,3112.0,0.12963685]
[1642533079695,1.81645486,3112.1,3112.0,0.12963685]
[1642533079899,1.81645486,3112.1,3112.0,0.00113685]
[1642533080394,1.81645486,3112.1,3111.6,0.00341054]
[1642533080594,1.81645486,3112.1,3111.8,0.80336]
[1642533080793,1.81645486,3112.1,3111.9,0.80339]
[1642533080995,1.81645486,3112.1,3111.9,0.80509527]
[1642533081196,0.00113684,3112.4,3112.0,0.00113685]
[1642533081597,0.00113684,3112.4,3112.0,0.80447685]
[1642533082503,0.00113684,3112.4,3112.1,0.1285]
[1642533082699,0.00113684,3112.4,3112.1,0.93183]
[1642533082970,0.00113684,3112.4,3112.1,1.7351]
[1642533083170,0.00113684,3112.4,3112.1,3.0351]
[1642533083370,0.00113684,3112.4,3112.2,2.40921]
[1642533083570,0.00113684,3112.4,3112.3,5.8785]
[1642533083871,0.00113684,3112.4,3112.3,6.68154]
[1642533084068,0.00113684,3112.4,3112.3,7.68154]
[1642533084470,0.00113684,3112.4,3112.3,10.41154944]
[1642533087908,0.00113684,3112.4,3112.3,13.61154944]
[1642533089305,1.62230696,3113.7,3112.4,5.75]
[1642533089605,0.00625266,3113.5,3113.1,0.80297]
[1642533090003,0.00568424,3113.4,3113.1,0.80297]
[1642533090451,0.00511582,3113.3,3113.1,2.89817051]
[1642533090647,0.00511582,3113.3,3113.1,3.40893]
[1642533090847,0.00454739,3113.2,3113.1,4.2119067]
[1642533091046,0.00454739,3113.2,3113.1,2.40893]
[1642533091252,0.00454739,3113.2,3113.0,0.1283]
[1642533091551,0.00397897,3113.1,3112.7,1.07957994]
[1642533091951,1.85253111,3113.0,3112.7,1.07957994]
[1642533092351,0.00284212,3112.9,3112.7,1.07957994]
[1642533092750,0.0022737,3112.8,3112.7,1.07957994]
[1642533093753,0.0022737,3112.8,3112.7,0.27639994]
[1642533094703,0.1285,3112.7,3112.1,3.6056]
[1642533094899,0.1285,3112.7,3112.0,0.00113685]
[1642533094900,3.44866933,3112.7,3112.0,0.00113685]
[1642533095096,3.44866933,3112.7,3111.5,0.257158]
[1642533095097,0.00113685,3112.6,3112.2,0.00113685]
[1642533095297,0.00113685,3112.6,3111.5,0.128658]
[1642533095298,2.30330862,3112.1,3112.0,0.00227369]
[1642533095501,0.85,3112.1,3111.6,3.50270291]
[1642533095700,0.85,3112.1,3111.7,0.80742896]
[1642533096198,0.85,3112.1,3111.8,0.00341054]
[1642533096398,0.85,3112.1,3111.9,1.75650631]
[1642533096596,0.1285,3112.5,3111.9,1.75650631]
[1642533096802,0.1285,3112.5,3112.2,1.43212667]
[1642533097002,0.30113685,3112.6,3112.2,1.43212667]
[1642533097201,0.30113685,3112.6,3112.2,2.23541667]
[1642533097404,0.00113685,3112.6,3112.2,2.23541667]
[1642533097601,0.30113685,3112.6,3112.2,2.23541667]
[1642533097849,0.00113685,3112.6,3112.2,0.80329]
[1642533098249,0.00113685,3112.6,3112.2,1.60659]
[1642533098448,0.00113685,3112.6,3112.2,4.80659]
[1642533098650,0.00113685,3112.6,3112.3,0.1285]
[1642533099450,0.00113685,3112.6,3112.2,3.2]
[1642533099652,0.98893685,3112.6,3112.2,3.2]
[1642533099853,1.73558,3112.5,3112.2,3.2]
[1642533100053,2.47431683,3112.4,3112.2,3.2]
[1642533100254,5.8785,3112.3,3112.2,3.2]
[1642533100657,5.8785,3112.3,3112.2,3.20113684]
[1642533101055,5.8785,3112.3,3112.2,0.42764926]
[1642533101056,6.68217,3112.3,3112.2,0.42764926]
[1642533101458,0.42755074,3112.2,3111.3,3.03419648]
[1642533101713,4.1584242,3112.1,3110.6,8.57156681]
[1642533101916,1.69731,3112.1,3111.4,0.00454739]
[1642533102112,1.0317459,3111.9,3111.4,0.00454739]
[1642533102312,0.8038,3111.7,3111.4,0.00454739]
[1642533102513,0.1285,3111.6,3111.4,0.00454739]
[1642533102712,2.99228113,3111.6,3111.4,0.00454739]
[1642533102912,3.59228113,3111.6,3111.4,0.00454739]
[1642533103320,0.7285,3111.6,3111.4,0.00454739]
[1642533103512,1.5322753,3111.6,3111.4,0.00454739]
[1642533103714,0.3,3111.5,3111.4,0.00454739]
[1642533103914,6.1785,3111.5,3111.4,0.00454739]
[1642533104614,0.4285,3111.5,3111.4,0.00454739]
[1642533104814,0.1285,3111.5,3111.4,0.00454739]
[1642533105014,1.92511902,3111.7,3111.4,0.00454739]
[1642533105213,0.86993552,3111.9,3111.3,0.00511581]
[1642533105450,1.16993552,3111.9,3111.3,0.00511581]
[1642533105853,1.16993552,3111.9,3111.3,0.80864581]
[1642533106050,1.16993552,3111.9,3111.3,0.80865581]
[1642533106349,0.3,3111.9,3111.4,2.0406585]
[1642533106551,0.1285,3112.2,3111.4,2.0406585]
[1642533106755,0.4285,3112.2,3111.5,0.00397897]
[1642533106953,0.1285,3112.2,3111.5,0.00397897]
[1642533107252,0.4285,3112.2,3111.5,0.00397897]
[1642533107653,0.4285,3112.2,3111.5,3.20397897]
[1642533108055,0.80358,3112.1,3111.6,0.00341054]
[1642533108656,2.85638997,3112.0,3111.6,0.00341054]
[1642533108856,0.1285,3111.9,3111.6,0.00341054]
[1642533109113,1.82426884,3111.8,3111.6,0.00341054]
[1642533109303,8.60204043,3111.7,3111.6,0.00341054]
[1642533109504,8.60204043,3111.7,3111.5,0.61641054]
[1642533109505,5.75,3111.6,3111.5,0.61641054]
[1642533109705,5.75,3111.5,3110.3,3.03419648]
[1642533109905,0.80393,3111.3,3110.3,3.03419648]
[1642533110105,0.1285,3111.2,3110.4,0.00682108]
[1642533110508,0.1285,3111.2,3110.3,0.00738951]
[1642533110714,0.86993552,3112.0,3111.0,1.14890697]
[1642533110908,0.86993552,3112.0,3110.6,1.227]
[1642533111112,0.00170527,3111.9,3111.1,0.00284212]
[1642533111309,0.00170527,3111.9,3110.7,0.00511581]
[1642533111310,0.1285,3111.8,3110.7,0.00511581]
[1642533111510,0.86993552,3111.4,3110.7,0.00511581]
[1642533111712,0.86993552,3111.4,3111.0,2.02837857]
[1642533112110,0.86993552,3111.4,3111.1,0.00284212]
[1642533112710,0.86993552,3111.4,3111.1,0.80643212]
[1642533113151,0.86993552,3111.4,3111.2,0.0022737]
[1642533113955,0.00113684,3111.8,3111.2,0.0022737]
[1642533114354,0.00113684,3111.8,3111.5,2.31864184]
[1642533114557,0.00113684,3111.8,3111.2,0.0022737]
[1642533114955,0.00113684,3111.8,3111.1,0.00284212]
[1642533115554,0.00113684,3111.8,3111.5,2.33159146]
[1642533115754,0.00113684,3111.8,3111.1,0.80644212]
[1642533116259,0.00113684,3111.8,3111.2,0.0022737]
[1642533117426,1.79405947,3111.4,3111.1,0.00284212]
[1642533117727,0.00113684,3111.8,3111.1,0.00284212]
[1642533118128,0.00113684,3111.8,3111.0,0.00341054]
[1642533118326,0.00113684,3111.8,3110.9,1.00397897]
[1642533118525,0.00113684,3111.8,3111.0,0.1285]
[1642533118727,0.00113684,3111.8,3111.0,0.13191054]
[1642533118929,0.00113684,3111.8,3111.1,0.00284212]
[1642533119428,0.00113684,3111.8,3111.0,0.00341054]
[1642533119629,0.00113684,3111.8,3111.0,0.80704054]
[1642533120027,0.00113684,3111.8,3111.1,0.00284212]
[1642533120655,0.00113684,3111.8,3111.7,1.81087277]
[1642533122457,0.00113684,3111.8,3111.7,5.51087277]
[1642533122657,0.00113684,3111.8,3111.7,3.41755277]
[1642533123257,0.00113684,3111.8,3111.7,6.05459931]
[1642533124107,0.00113684,3111.8,3111.7,6.24430933]
[1642533124301,0.00113684,3111.8,3111.7,7.24430933]
[1642533124604,0.1285,3112.9,3111.7,7.24430933]
[1642533124804,0.1285,3113.1,3112.0,0.80325]
[1642533125005,0.00568424,3112.8,3112.1,3.07481233]
[1642533125207,0.00568424,3112.8,3112.2,1.85741652]
[1642533125419,0.00511581,3112.7,3112.2,1.85741652]
[1642533125805,0.00454739,3112.6,3112.3,3.80008693]
[1642533126006,0.00454739,3112.6,3112.3,0.94144997]
[1642533126207,0.00397897,3112.5,3112.4,1.0]
[1642533126407,0.00397897,3112.5,3112.4,5.75]
[1642533126709,0.00397897,3112.5,3112.4,8.35615]
[1642533126911,1.62230696,3113.6,3112.4,8.35615]
[1642533127107,1.62230696,3113.6,3112.5,6.7]
[1642533127306,0.00568423,3113.5,3112.5,6.7]
[1642533127875,0.00511581,3113.4,3112.7,0.8029791]
[1642533128064,0.00511581,3113.4,3112.8,3.05430706]
[1642533128265,0.00454739,3113.3,3112.8,3.05430706]
[1642533128466,0.00454739,3113.3,3112.8,2.25129706]
[1642533128666,0.00397896,3113.2,3112.8,2.25129706]
[1642533129064,0.80676054,3113.1,3112.8,2.25129706]
[1642533129464,0.00284212,3113.0,3112.8,2.25129706]
[1642533129665,0.00284212,3113.0,3112.4,1.1995]
[1642533129865,0.00227369,3112.9,3112.3,0.26649997]